[Event "Titled Tuesday Blitz November 22 Early 2022"]
[White "Lauridsen, Jesper Morch"]
[Black "Reprintsev, Alexander"]
[WhiteFideId "1401890"]
[BlackFideId "14100541"]
[WhiteElo "2248"]
[BlackElo "2230"]
[Result "0-1"]
[Round "03"]
[TimeControl "180+1"]
[Date "2022.11.23"]
[WhiteClock "0:00:51"]
[BlackClock "0:01:07"]

1. e4 {[%clk 0:02:57]}  d5 {[%clk 0:02:59]} 2. exd5 {[%clk 0:02:56]}  Qxd5 {[%clk 0:03:00]} 3. Nf3 {[%clk 0:02:57]}  Bg4 {[%clk 0:02:59]} 4. Be2 {[%clk 0:02:56]}  Nc6 {[%clk 0:02:59]} 5. d4 {[%clk 0:02:55]}  O-O-O {[%clk 0:02:58]} 6. Be3 {[%clk 0:02:50]}  e5 {[%clk 0:02:57]} 7. c4 {[%clk 0:02:49]}  Qa5+ {[%clk 0:02:56]} 8. Bd2 {[%clk 0:02:49]}  Bb4 {[%clk 0:02:53]} 9. d5 {[%clk 0:02:49]}  Bxf3 {[%clk 0:02:50]} 10. Bxf3 {[%clk 0:02:47]}  Nd4 {[%clk 0:02:50]} 11. Nc3 {[%clk 0:02:37]}  Qa6 {[%clk 0:02:46]} 12. b3 {[%clk 0:02:37]}  Qg6 {[%clk 0:02:34]} 13. O-O {[%clk 0:02:27]}  Nf6 {[%clk 0:02:32]} 14. a3 {[%clk 0:02:23]}  Bxc3 {[%clk 0:02:31]} 15. Bxc3 {[%clk 0:02:23]}  Nxf3+ {[%clk 0:02:15]} 16. Qxf3 {[%clk 0:02:21]}  Rhe8 {[%clk 0:02:16]} 17. Rae1 {[%clk 0:02:12]}  e4 {[%clk 0:02:14]} 18. Qh3+ {[%clk 0:02:12]}  Kb8 {[%clk 0:02:11]} 19. Bxf6 {[%clk 0:02:12]}  gxf6 {[%clk 0:01:51]} 20. Re3 {[%clk 0:02:11]}  f5 {[%clk 0:01:49]} 21. f3 {[%clk 0:01:56]}  Qb6 {[%clk 0:01:47]} 22. f4 {[%clk 0:01:46]}  c6 {[%clk 0:01:44]} 23. Kh1 {[%clk 0:01:43]}  cxd5 {[%clk 0:01:43]} 24. cxd5 {[%clk 0:01:43]}  Rxd5 {[%clk 0:01:42]} 25. Rfe1 {[%clk 0:01:26]}  Red8 {[%clk 0:01:37]} 26. Qg3 {[%clk 0:01:13]}  Rd3 {[%clk 0:01:31]} 27. h3 {[%clk 0:01:09]}  Qxb3 {[%clk 0:01:28]} 28. Rxd3 {[%clk 0:01:05]}  Qxd3 {[%clk 0:01:28]} 29. Qg7 {[%clk 0:01:01]}  Qd2 {[%clk 0:01:19]} 30. Qe5+ {[%clk 0:00:59]}  Ka8 {[%clk 0:01:18]} 31. Rb1 {[%clk 0:00:59]}  e3 {[%clk 0:01:11]} 32. Qc7 {[%clk 0:00:57]}  Qd7 {[%clk 0:01:10]} 33. Rxb7 {[%clk 0:00:53]}  Qxc7 {[%clk 0:01:09]} 34. Rxc7 {[%clk 0:00:53]}  e2 {[%clk 0:01:06]} 35. Re7 {[%clk 0:00:50]}  Rd1+ {[%clk 0:01:06]} 36. Kh2 {[%clk 0:00:51]}  e1=Q {[%clk 0:01:07]} 0-1


[Site "https://www.chess.com"]

[Event "Titled Tuesday Blitz November 22 Early 2022"]
[White "Lorenzo De La Riva, Lazaro"]
[Black "Nugumanov, Bakhtiyar"]
[WhiteFideId "2268809"]
[BlackFideId "13701797"]
[WhiteElo "2294"]
[BlackElo "2287"]
[Result "0-1"]
[Round "03"]
[TimeControl "180+1"]
[Date "2022.11.23"]
[WhiteClock "0:00:10"]
[BlackClock "0:00:10"]

1. e4 {[%clk 0:03:00]}  d6 {[%clk 0:02:58]} 2. d4 {[%clk 0:02:58]}  Nf6 {[%clk 0:02:58]} 3. Nc3 {[%clk 0:02:57]}  g6 {[%clk 0:02:58]} 4. Nf3 {[%clk 0:02:56]}  Bg7 {[%clk 0:02:59]} 5. Bc4 {[%clk 0:02:50]}  O-O {[%clk 0:02:59]} 6. Qe2 {[%clk 0:02:31]}  Nc6 {[%clk 0:02:40]} 7. e5 {[%clk 0:02:14]}  Ng4 {[%clk 0:02:17]} 8. h3 {[%clk 0:01:59]}  Nh6 {[%clk 0:02:09]} 9. g4 {[%clk 0:01:52]}  dxe5 {[%clk 0:01:56]} 10. dxe5 {[%clk 0:01:50]}  e6 {[%clk 0:01:50]} 11. Bg5 {[%clk 0:01:45]}  Qd7 {[%clk 0:01:35]} 12. Ne4 {[%clk 0:01:35]}  Nd4 {[%clk 0:01:26]} 13. Nxd4 {[%clk 0:01:19]}  Qxd4 {[%clk 0:01:24]} 14. Nf6+ {[%clk 0:01:13]}  Kh8 {[%clk 0:01:24]} 15. Rd1 {[%clk 0:01:11]}  Qxb2 {[%clk 0:01:20]} 16. Qd2 {[%clk 0:00:53]}  Ng8 {[%clk 0:01:17]} 17. f4 {[%clk 0:00:38]}  Nxf6 {[%clk 0:01:12]} 18. exf6 {[%clk 0:00:36]}  Bxf6 {[%clk 0:01:13]} 19. O-O {[%clk 0:00:26]}  Bg7 {[%clk 0:00:58]} 20. Rf3 {[%clk 0:00:09]}  Qb6+ {[%clk 0:00:51]} 21. Kh2 {[%clk 0:00:07]}  c6 {[%clk 0:00:51]} 22. Rd3 {[%clk 0:00:06]}  h6 {[%clk 0:00:30]} 23. Bh4 {[%clk 0:00:06]}  Qc7 {[%clk 0:00:20]} 24. Bg3 {[%clk 0:00:06]}  b5 {[%clk 0:00:20]} 25. Bb3 {[%clk 0:00:06]}  Bb7 {[%clk 0:00:20]} 26. Rd7 {[%clk 0:00:05]}  Qb6 {[%clk 0:00:20]} 27. Bf2 {[%clk 0:00:05]}  Qa6 {[%clk 0:00:18]} 28. Qd6 {[%clk 0:00:06]}  c5 {[%clk 0:00:08]} 29. Qc7 {[%clk 0:00:05]}  Bf3 {[%clk 0:00:06]} 30. R1d3 {[%clk 0:00:05]}  c4 {[%clk 0:00:05]} 31. Rxf3 {[%clk 0:00:05]}  cxb3 {[%clk 0:00:06]} 32. axb3 {[%clk 0:00:05]}  Rac8 {[%clk 0:00:07]} 33. Qd6 {[%clk 0:00:05]}  Qxd6 {[%clk 0:00:06]} 34. Rxd6 {[%clk 0:00:05]}  Rxc2 {[%clk 0:00:07]} 35. Rd7 {[%clk 0:00:03]}  Rfc8 {[%clk 0:00:04]} 36. Rxa7 {[%clk 0:00:03]}  Bd4 {[%clk 0:00:04]} 37. Rxf7 {[%clk 0:00:01]}  Bxf2 {[%clk 0:00:04]} 38. Kg2 {[%clk 0:00:01]}  Bd4+ {[%clk 0:00:04]} 39. Kf1 {[%clk 0:00:01]}  Rc1+ {[%clk 0:00:04]} 40. Ke2 {[%clk 0:00:02]}  R8c2+ {[%clk 0:00:05]} 41. Kd3 {[%clk 0:00:03]}  Bg7 {[%clk 0:00:05]} 42. Ke4 {[%clk 0:00:02]}  Re2+ {[%clk 0:00:05]} 43. Kd3 {[%clk 0:00:02]}  Rb2 {[%clk 0:00:04]} 44. Ke4 {[%clk 0:00:02]}  Re1+ {[%clk 0:00:04]} 45. Kd3 {[%clk 0:00:02]}  Rxb3+ {[%clk 0:00:04]} 46. Kc2 {[%clk 0:00:03]}  Rxf3 {[%clk 0:00:04]} 47. g5 {[%clk 0:00:04]}  Rf2+ {[%clk 0:00:04]} 48. Kd3 {[%clk 0:00:03]}  Rd1+ {[%clk 0:00:04]} 49. Ke4 {[%clk 0:00:04]}  Re2+ {[%clk 0:00:05]} 50. Kf3 {[%clk 0:00:05]}  Red2 {[%clk 0:00:04]} 51. gxh6 {[%clk 0:00:05]}  Bxh6 {[%clk 0:00:04]} 52. Kg4 {[%clk 0:00:06]}  Rg2+ {[%clk 0:00:04]} 53. Kf3 {[%clk 0:00:07]}  Rdg1 {[%clk 0:00:04]} 54. h4 {[%clk 0:00:08]}  Rg3+ {[%clk 0:00:04]} 55. Ke4 {[%clk 0:00:09]}  Rg4 {[%clk 0:00:05]} 56. Ke5 {[%clk 0:00:09]}  Bg7+ {[%clk 0:00:05]} 57. Ke4 {[%clk 0:00:09]}  Rxh4 {[%clk 0:00:06]} 58. Kf3 {[%clk 0:00:10]}  Re1 {[%clk 0:00:06]} 59. Kg3 {[%clk 0:00:10]}  Rhh1 {[%clk 0:00:06]} 60. Kg2 {[%clk 0:00:10]}  Rhg1+ {[%clk 0:00:07]} 61. Kh2 {[%clk 0:00:10]}  Rgf1 {[%clk 0:00:08]} 62. Kg2 {[%clk 0:00:10]}  Rg1+ {[%clk 0:00:07]} 63. Kh2 {[%clk 0:00:11]}  Rgf1 {[%clk 0:00:07]} 64. Kg2 {[%clk 0:00:11]}  Rb1 {[%clk 0:00:07]} 65. Kh2 {[%clk 0:00:11]}  b4 {[%clk 0:00:07]} 66. Kg2 {[%clk 0:00:11]}  b3 {[%clk 0:00:08]} 67. Rb7 {[%clk 0:00:11]}  b2 {[%clk 0:00:09]} 68. Rb8+ {[%clk 0:00:12]}  Kh7 {[%clk 0:00:09]} 69. Kh2 {[%clk 0:00:10]}  Rfe1 {[%clk 0:00:10]} 70. Kg2 {[%clk 0:00:10]}  Rbd1 {[%clk 0:00:10]} 71. Kf2 {[%clk 0:00:11]}  b1=Q {[%clk 0:00:11]} 72. Re8 {[%clk 0:00:11]}  Rc1 {[%clk 0:00:11]} 73. Kg3 {[%clk 0:00:11]}  Qb3+ {[%clk 0:00:11]} 74. Kg4 {[%clk 0:00:11]}  Rg1+ {[%clk 0:00:12]} 75. Kh4 {[%clk 0:00:12]}  Rce1 {[%clk 0:00:11]} 76. Rh8+ {[%clk 0:00:11]}  Bxh8 {[%clk 0:00:09]} 77. f5 {[%clk 0:00:10]}  Qg3# {[%clk 0:00:10]} 0-1


[Site "https://www.chess.com"]

[Event "Titled Tuesday Blitz November 22 Early 2022"]
[White "Makhmudov, Shukhrat"]
[Black "Szyszylo, Rafal"]
[WhiteFideId "14200775"]
[BlackFideId "1109626"]
[WhiteElo "2135"]
[BlackElo "1981"]
[Result "1-0"]
[Round "03"]
[TimeControl "180+1"]
[Date "2022.11.23"]
[WhiteClock "0:00:31"]
[BlackClock "0:00:08"]

1. d4 {[%clk 0:02:56]}  d6 {[%clk 0:03:00]} 2. c4 {[%clk 0:02:56]}  g6 {[%clk 0:02:58]} 3. g3 {[%clk 0:02:56]}  Nf6 {[%clk 0:02:58]} 4. Bg2 {[%clk 0:02:56]}  Bg7 {[%clk 0:02:59]} 5. Nf3 {[%clk 0:02:57]}  O-O {[%clk 0:02:59]} 6. O-O {[%clk 0:02:56]}  Nc6 {[%clk 0:03:00]} 7. Nc3 {[%clk 0:02:55]}  a6 {[%clk 0:03:01]} 8. e4 {[%clk 0:02:52]}  Rb8 {[%clk 0:03:00]} 9. Re1 {[%clk 0:02:45]}  Bg4 {[%clk 0:03:00]} 10. Be3 {[%clk 0:02:40]}  e5 {[%clk 0:02:51]} 11. d5 {[%clk 0:02:36]}  Nd4 {[%clk 0:02:48]} 12. Bxd4 {[%clk 0:02:30]}  exd4 {[%clk 0:02:47]} 13. Qxd4 {[%clk 0:02:30]}  Nd7 {[%clk 0:02:37]} 14. Qd2 {[%clk 0:02:24]}  Bxf3 {[%clk 0:02:16]} 15. Bxf3 {[%clk 0:02:24]}  b5 {[%clk 0:02:16]} 16. cxb5 {[%clk 0:02:20]}  axb5 {[%clk 0:02:16]} 17. b4 {[%clk 0:02:20]}  Qf6 {[%clk 0:02:05]} 18. Re3 {[%clk 0:02:18]}  Ne5 {[%clk 0:02:00]} 19. Be2 {[%clk 0:02:15]}  Nc4 {[%clk 0:01:55]} 20. Bxc4 {[%clk 0:02:14]}  bxc4 {[%clk 0:01:56]} 21. a3 {[%clk 0:02:10]}  Qd4 {[%clk 0:01:32]} 22. Qe2 {[%clk 0:02:00]}  Ra8 {[%clk 0:01:05]} 23. Rd1 {[%clk 0:01:59]}  Qb6 {[%clk 0:01:04]} 24. Ra1 {[%clk 0:01:28]}  Bd4 {[%clk 0:00:56]} 25. Rf3 {[%clk 0:01:28]}  Rfe8 {[%clk 0:00:54]} 26. Qxc4 {[%clk 0:01:24]}  Re7 {[%clk 0:00:35]} 27. Rd1 {[%clk 0:01:17]}  Bg7 {[%clk 0:00:33]} 28. a4 {[%clk 0:01:17]}  Bxc3 {[%clk 0:00:29]} 29. a5 {[%clk 0:01:10]}  Qxb4 {[%clk 0:00:28]} 30. Rxc3 {[%clk 0:01:03]}  Qxa5 {[%clk 0:00:20]} 31. Kg2 {[%clk 0:00:57]}  Rae8 {[%clk 0:00:19]} 32. Rd4 {[%clk 0:00:53]}  Rb8 {[%clk 0:00:16]} 33. Rf3 {[%clk 0:00:49]}  Rb2 {[%clk 0:00:15]} 34. Qc6 {[%clk 0:00:43]}  Kg7 {[%clk 0:00:13]} 35. Ra4 {[%clk 0:00:39]}  Qd2 {[%clk 0:00:12]} 36. Qc3+ {[%clk 0:00:37]}  Qxc3 {[%clk 0:00:12]} 37. Rxc3 {[%clk 0:00:37]}  Re2 {[%clk 0:00:12]} 38. Kf3 {[%clk 0:00:35]}  Rb2 {[%clk 0:00:08]} 39. Ra7 {[%clk 0:00:35]}  Rb4 {[%clk 0:00:07]} 40. Rcxc7 {[%clk 0:00:31]}  Rbxe4 {[%clk 0:00:08]} 41. Rxe7 {[%clk 0:00:31]} 1-0


[Site "https://www.chess.com"]

[Event "Titled Tuesday Blitz November 22 Early 2022"]
[White "Manon-og, Ramon Jr."]
[Black "Beerdsen, Thomas"]
[WhiteFideId "5200776"]
[BlackFideId "1030108"]
[WhiteElo "2324"]
[BlackElo "2567"]
[Result "0-1"]
[Round "03"]
[TimeControl "180+1"]
[Date "2022.11.23"]
[WhiteClock "0:00:04"]
[BlackClock "0:01:28"]

1. e4 {[%clk 0:03:00]}  g5 {[%clk 0:02:53]} 2. d4 {[%clk 0:03:00]}  g4 {[%clk 0:02:52]} 3. Qxg4 {[%clk 0:02:59]}  d5 {[%clk 0:02:52]} 4. Qf3 {[%clk 0:02:56]}  dxe4 {[%clk 0:02:53]} 5. Qxe4 {[%clk 0:02:57]}  Nf6 {[%clk 0:02:52]} 6. Qd3 {[%clk 0:02:54]}  Nc6 {[%clk 0:02:52]} 7. c3 {[%clk 0:02:54]}  Qd5 {[%clk 0:02:52]} 8. Nf3 {[%clk 0:02:53]}  Rg8 {[%clk 0:02:50]} 9. Nbd2 {[%clk 0:02:53]}  Bf5 {[%clk 0:02:48]} 10. Qc4 {[%clk 0:02:48]}  O-O-O {[%clk 0:02:45]} 11. Qxd5 {[%clk 0:02:48]}  Nxd5 {[%clk 0:02:46]} 12. Nh4 {[%clk 0:02:35]}  Bc2 {[%clk 0:02:41]} 13. g3 {[%clk 0:02:33]}  e5 {[%clk 0:02:40]} 14. dxe5 {[%clk 0:02:17]}  Kb8 {[%clk 0:02:38]} 15. Be2 {[%clk 0:01:57]}  Nxe5 {[%clk 0:02:30]} 16. O-O {[%clk 0:01:57]}  Nf4 {[%clk 0:02:27]} 17. Re1 {[%clk 0:01:31]}  Ned3 {[%clk 0:02:12]} 18. Bxd3 {[%clk 0:01:30]}  Nxd3 {[%clk 0:02:13]} 19. Re2 {[%clk 0:01:27]}  Bd1 {[%clk 0:02:11]} 20. Re3 {[%clk 0:01:20]}  Bc5 {[%clk 0:02:11]} 21. Ne4 {[%clk 0:00:50]}  Bxe3 {[%clk 0:02:00]} 22. Bxe3 {[%clk 0:00:51]}  Nxb2 {[%clk 0:01:51]} 23. Nf6 {[%clk 0:00:44]}  Rh8 {[%clk 0:01:50]} 24. Rb1 {[%clk 0:00:43]}  Nc4 {[%clk 0:01:44]} 25. Bd4 {[%clk 0:00:44]}  Bc2 {[%clk 0:01:42]} 26. Rc1 {[%clk 0:00:42]}  Ba4 {[%clk 0:01:41]} 27. Rb1 {[%clk 0:00:34]}  Bc6 {[%clk 0:01:40]} 28. Nf5 {[%clk 0:00:24]}  Nd2 {[%clk 0:01:40]} 29. Rb4 {[%clk 0:00:18]}  a5 {[%clk 0:01:39]} 30. Rb2 {[%clk 0:00:15]}  Nf3+ {[%clk 0:01:40]} 31. Kf1 {[%clk 0:00:15]}  h5 {[%clk 0:01:40]} 32. Ne7 {[%clk 0:00:14]}  Nxd4 {[%clk 0:01:37]} 33. cxd4 {[%clk 0:00:14]}  Bf3 {[%clk 0:01:37]} 34. d5 {[%clk 0:00:12]}  Ka7 {[%clk 0:01:36]} 35. Rb3 {[%clk 0:00:11]}  Bg4 {[%clk 0:01:32]} 36. Kg2 {[%clk 0:00:10]}  Rd6 {[%clk 0:01:30]} 37. Nxg4 {[%clk 0:00:09]}  hxg4 {[%clk 0:01:31]} 38. Rc3 {[%clk 0:00:09]}  Rdh6 {[%clk 0:01:31]} 39. Rxc7 {[%clk 0:00:08]}  Rxh2+ {[%clk 0:01:32]} 40. Kf1 {[%clk 0:00:08]}  Kb8 {[%clk 0:01:28]} 41. d6 {[%clk 0:00:04]}  Rd8 {[%clk 0:01:28]} 0-1


[Site "https://www.chess.com"]

[Event "Titled Tuesday Blitz November 22 Early 2022"]
[White "Melikyan, Gnel"]
[Black "Jumabayev, Rinat"]
[WhiteFideId "54109990"]
[BlackFideId "13702661"]
[WhiteElo "2138"]
[BlackElo "2561"]
[Result "1-0"]
[Round "03"]
[TimeControl "180+1"]
[Date "2022.11.23"]
[WhiteClock "0:00:04"]
[BlackClock "0:00:01"]

1. e4 {[%clk 0:02:56]}  c5 {[%clk 0:03:00]} 2. Nf3 {[%clk 0:02:55]}  Nc6 {[%clk 0:03:00]} 3. Bb5 {[%clk 0:02:53]}  e6 {[%clk 0:03:00]} 4. O-O {[%clk 0:02:50]}  Nge7 {[%clk 0:03:01]} 5. Re1 {[%clk 0:02:50]}  Ng6 {[%clk 0:02:50]} 6. c3 {[%clk 0:02:48]}  d5 {[%clk 0:02:43]} 7. exd5 {[%clk 0:02:38]}  Qxd5 {[%clk 0:02:44]} 8. d4 {[%clk 0:02:36]}  cxd4 {[%clk 0:02:43]} 9. Nxd4 {[%clk 0:02:34]}  Bd7 {[%clk 0:02:44]} 10. Bxc6 {[%clk 0:02:08]}  Bxc6 {[%clk 0:02:43]} 11. Nxc6 {[%clk 0:02:06]}  Qxc6 {[%clk 0:02:43]} 12. Be3 {[%clk 0:02:01]}  Bd6 {[%clk 0:02:38]} 13. Nd2 {[%clk 0:01:56]}  O-O {[%clk 0:02:39]} 14. Qf3 {[%clk 0:01:45]}  Rfc8 {[%clk 0:02:28]} 15. Red1 {[%clk 0:01:32]}  Ne5 {[%clk 0:02:19]} 16. Qxc6 {[%clk 0:01:27]}  Rxc6 {[%clk 0:02:20]} 17. Bf4 {[%clk 0:01:22]}  Nd3 {[%clk 0:02:12]} 18. Bxd6 {[%clk 0:01:21]}  Rxd6 {[%clk 0:02:13]} 19. Nc4 {[%clk 0:01:02]}  Rd5 {[%clk 0:01:44]} 20. Ne3 {[%clk 0:00:50]}  Rd7 {[%clk 0:01:43]} 21. b3 {[%clk 0:00:41]}  Kf8 {[%clk 0:01:37]} 22. Kf1 {[%clk 0:00:37]}  Rad8 {[%clk 0:01:35]} 23. g3 {[%clk 0:00:35]}  Ke7 {[%clk 0:01:21]} 24. Ke2 {[%clk 0:00:34]}  f5 {[%clk 0:01:22]} 25. Nc2 {[%clk 0:00:28]}  Kf6 {[%clk 0:01:12]} 26. f4 {[%clk 0:00:22]}  Nc5 {[%clk 0:00:56]} 27. Rxd7 {[%clk 0:00:21]}  Rxd7 {[%clk 0:00:57]} 28. Nd4 {[%clk 0:00:22]}  Ne4 {[%clk 0:00:54]} 29. Kd3 {[%clk 0:00:20]}  Nf2+ {[%clk 0:00:50]} 30. Ke2 {[%clk 0:00:19]}  Ne4 {[%clk 0:00:48]} 31. Kd3 {[%clk 0:00:19]}  Rc7 {[%clk 0:00:46]} 32. Rc1 {[%clk 0:00:18]}  a6 {[%clk 0:00:44]} 33. c4 {[%clk 0:00:16]}  Rd7 {[%clk 0:00:44]} 34. Ke3 {[%clk 0:00:17]}  h6 {[%clk 0:00:39]} 35. b4 {[%clk 0:00:12]}  e5 {[%clk 0:00:16]} 36. fxe5+ {[%clk 0:00:12]}  Kxe5 {[%clk 0:00:17]} 37. Nf3+ {[%clk 0:00:10]}  Kf6 {[%clk 0:00:17]} 38. c5 {[%clk 0:00:11]}  Re7 {[%clk 0:00:16]} 39. c6 {[%clk 0:00:09]}  Nxg3+ {[%clk 0:00:07]} 40. Kd3 {[%clk 0:00:09]}  Ne2 {[%clk 0:00:08]} 41. Rc4 {[%clk 0:00:05]}  b5 {[%clk 0:00:07]} 42. Rc5 {[%clk 0:00:03]}  Nf4+ {[%clk 0:00:07]} 43. Kd4 {[%clk 0:00:04]}  Ne6+ {[%clk 0:00:08]} 44. Kd5 {[%clk 0:00:04]}  Nxc5 {[%clk 0:00:08]} 45. bxc5 {[%clk 0:00:04]}  g5 {[%clk 0:00:05]} 46. Kd6 {[%clk 0:00:04]}  g4 {[%clk 0:00:06]} 47. Nd4 {[%clk 0:00:04]}  f4 {[%clk 0:00:06]} 48. c7 {[%clk 0:00:04]}  Rxc7 {[%clk 0:00:06]} 49. Kxc7 {[%clk 0:00:04]}  f3 {[%clk 0:00:07]} 50. Nc2 {[%clk 0:00:05]}  Ke5 {[%clk 0:00:07]} 51. Kb6 {[%clk 0:00:04]}  Ke4 {[%clk 0:00:06]} 52. c6 {[%clk 0:00:04]}  f2 {[%clk 0:00:07]} 53. c7 {[%clk 0:00:04]}  f1=Q {[%clk 0:00:08]} 54. c8=Q {[%clk 0:00:05]}  Qf2+ {[%clk 0:00:08]} 55. Qc5 {[%clk 0:00:05]}  Qxh2 {[%clk 0:00:07]} 56. Qd4+ {[%clk 0:00:06]}  Kf5 {[%clk 0:00:05]} 57. Ne3+ {[%clk 0:00:06]}  Ke6 {[%clk 0:00:05]} 58. Qxg4+ {[%clk 0:00:06]}  Kf7 {[%clk 0:00:04]} 59. Qf5+ {[%clk 0:00:07]}  Kg7 {[%clk 0:00:05]} 60. Qd7+ {[%clk 0:00:03]}  Kg6 {[%clk 0:00:05]} 61. Qe6+ {[%clk 0:00:04]}  Kh7 {[%clk 0:00:02]} 62. Qf7+ {[%clk 0:00:03]}  Kh8 {[%clk 0:00:03]} 63. Nf5 {[%clk 0:00:03]}  Qb8+ {[%clk 0:00:02]} 64. Kxa6 {[%clk 0:00:03]}  Qa8+ {[%clk 0:00:02]} 65. Kxb5 {[%clk 0:00:04]}  Qb8+ {[%clk 0:00:03]} 66. Kc6 {[%clk 0:00:04]}  Qc8+ {[%clk 0:00:03]} 67. Kd6 {[%clk 0:00:04]}  Qd8+ {[%clk 0:00:03]} 68. Ke5 {[%clk 0:00:04]}  Qb8+ {[%clk 0:00:03]} 69. Kf6 {[%clk 0:00:05]}  Qd8+ {[%clk 0:00:02]} 70. Qe7 {[%clk 0:00:04]}  Qb6+ {[%clk 0:00:02]} 71. Qe6 {[%clk 0:00:04]}  Qd8+ {[%clk 0:00:01]} 72. Kf7 {[%clk 0:00:04]} 1-0


[Site "https://www.chess.com"]

[Event "Titled Tuesday Blitz November 22 Early 2022"]
[White "Mohammed, Zozek Salah Mohammed"]
[Black "Sharifov, Mekhriddin"]
[WhiteFideId "4803361"]
[BlackFideId "14701545"]
[WhiteElo "2199"]
[BlackElo "2109"]
[Result "0-1"]
[Round "03"]
[TimeControl "180+1"]
[Date "2022.11.23"]
[WhiteClock "0:00:06"]
[BlackClock "0:01:05"]

1. d4 {[%clk 0:03:00]}  Nf6 {[%clk 0:02:58]} 2. Nf3 {[%clk 0:03:00]}  e6 {[%clk 0:02:57]} 3. c4 {[%clk 0:03:00]}  b6 {[%clk 0:02:57]} 4. g3 {[%clk 0:02:59]}  Ba6 {[%clk 0:02:56]} 5. b3 {[%clk 0:02:56]}  Bb4+ {[%clk 0:02:55]} 6. Bd2 {[%clk 0:02:55]}  Be7 {[%clk 0:02:56]} 7. Bg2 {[%clk 0:02:54]}  O-O {[%clk 0:02:56]} 8. O-O {[%clk 0:02:52]}  d5 {[%clk 0:02:57]} 9. Ne5 {[%clk 0:02:48]}  c5 {[%clk 0:02:55]} 10. Bc3 {[%clk 0:02:36]}  Ne4 {[%clk 0:02:24]} 11. Bb2 {[%clk 0:02:35]}  f6 {[%clk 0:02:18]} 12. Nd3 {[%clk 0:02:24]}  f5 {[%clk 0:02:18]} 13. Ne5 {[%clk 0:02:22]}  Bb7 {[%clk 0:02:11]} 14. Nd2 {[%clk 0:02:15]}  Nd7 {[%clk 0:02:10]} 15. Nxd7 {[%clk 0:02:09]}  Qxd7 {[%clk 0:02:08]} 16. Qc2 {[%clk 0:02:08]}  Nxd2 {[%clk 0:02:00]} 17. Qxd2 {[%clk 0:02:07]}  dxc4 {[%clk 0:02:00]} 18. Bxb7 {[%clk 0:02:01]}  Qxb7 {[%clk 0:01:57]} 19. bxc4 {[%clk 0:02:01]}  cxd4 {[%clk 0:01:53]} 20. Bxd4 {[%clk 0:01:57]}  Rfd8 {[%clk 0:01:52]} 21. Qc3 {[%clk 0:01:51]}  Bf8 {[%clk 0:01:47]} 22. Rac1 {[%clk 0:01:44]}  Rac8 {[%clk 0:01:47]} 23. Rfd1 {[%clk 0:01:41]}  Qe4 {[%clk 0:01:46]} 24. e3 {[%clk 0:01:14]}  h5 {[%clk 0:01:45]} 25. h4 {[%clk 0:00:36]}  Qf3 {[%clk 0:01:45]} 26. Qe1 {[%clk 0:00:20]}  Rc6 {[%clk 0:01:34]} 27. Be5 {[%clk 0:00:18]}  Rdc8 {[%clk 0:01:28]} 28. Rd4 {[%clk 0:00:17]}  b5 {[%clk 0:01:21]} 29. Qd1 {[%clk 0:00:14]}  Qxd1+ {[%clk 0:01:21]} 30. Rcxd1 {[%clk 0:00:15]}  bxc4 {[%clk 0:01:20]} 31. Rd7 {[%clk 0:00:15]}  c3 {[%clk 0:01:19]} 32. Rxa7 {[%clk 0:00:13]}  c2 {[%clk 0:01:17]} 33. Rc1 {[%clk 0:00:14]}  Rc5 {[%clk 0:01:08]} 34. Bd4 {[%clk 0:00:11]}  Rc4 {[%clk 0:01:08]} 35. Kf1 {[%clk 0:00:10]}  Rb4 {[%clk 0:01:06]} 36. Ke2 {[%clk 0:00:10]}  Rb1 {[%clk 0:01:06]} 37. Kd2 {[%clk 0:00:07]}  Bb4+ {[%clk 0:01:06]} 38. Kd3 {[%clk 0:00:07]}  Rxc1 {[%clk 0:01:05]} 39. Rxg7+ {[%clk 0:00:08]}  Kf8 {[%clk 0:01:05]} 40. Rc7 {[%clk 0:00:07]}  Rd1+ {[%clk 0:01:06]} 41. Ke2 {[%clk 0:00:06]}  Rxc7 {[%clk 0:01:05]} 0-1


[Site "https://www.chess.com"]

[Event "Titled Tuesday Blitz November 22 Early 2022"]
[White "Muminova, Nafisa"]
[Black "Torres Dominguez, David"]
[WhiteFideId "14201526"]
[BlackFideId "2220857"]
[WhiteElo "2258"]
[BlackElo "2037"]
[Result "1-0"]
[Round "03"]
[TimeControl "180+1"]
[Date "2022.11.23"]
[WhiteClock "0:00:16"]
[BlackClock "0:00:17"]

1. e4 {[%clk 0:02:50]}  Nc6 {[%clk 0:02:58]} 2. Nf3 {[%clk 0:02:49]}  e5 {[%clk 0:02:58]} 3. d4 {[%clk 0:02:48]}  exd4 {[%clk 0:02:59]} 4. Nxd4 {[%clk 0:02:48]}  Nf6 {[%clk 0:02:59]} 5. Nxc6 {[%clk 0:02:48]}  bxc6 {[%clk 0:02:59]} 6. e5 {[%clk 0:02:49]}  Qe7 {[%clk 0:03:00]} 7. Qe2 {[%clk 0:02:48]}  Nd5 {[%clk 0:03:00]} 8. c4 {[%clk 0:02:48]}  Ba6 {[%clk 0:03:01]} 9. Nd2 {[%clk 0:02:46]}  g6 {[%clk 0:02:59]} 10. Nf3 {[%clk 0:02:43]}  Bg7 {[%clk 0:02:52]} 11. Bg5 {[%clk 0:02:42]}  Qb4+ {[%clk 0:02:48]} 12. Qd2 {[%clk 0:02:42]}  Qxd2+ {[%clk 0:02:40]} 13. Bxd2 {[%clk 0:02:41]}  Nb6 {[%clk 0:02:36]} 14. b3 {[%clk 0:02:38]}  d6 {[%clk 0:02:35]} 15. O-O-O {[%clk 0:02:37]}  dxe5 {[%clk 0:02:15]} 16. Nxe5 {[%clk 0:02:36]}  Bb7 {[%clk 0:02:11]} 17. Bf4 {[%clk 0:02:25]}  O-O {[%clk 0:01:57]} 18. Bd3 {[%clk 0:02:16]}  Rad8 {[%clk 0:01:53]} 19. Rhe1 {[%clk 0:02:08]}  c5 {[%clk 0:01:50]} 20. f3 {[%clk 0:02:05]}  f6 {[%clk 0:01:44]} 21. Ng4 {[%clk 0:01:58]}  Rfe8 {[%clk 0:01:39]} 22. Rxe8+ {[%clk 0:01:52]}  Rxe8 {[%clk 0:01:38]} 23. Bxc7 {[%clk 0:01:52]}  h5 {[%clk 0:01:28]} 24. Bxg6 {[%clk 0:01:40]}  Rc8 {[%clk 0:01:21]} 25. Bxb6 {[%clk 0:01:27]}  hxg4 {[%clk 0:01:21]} 26. Bxa7 {[%clk 0:01:01]}  gxf3 {[%clk 0:01:20]} 27. gxf3 {[%clk 0:01:01]}  Bxf3 {[%clk 0:01:20]} 28. Rd7 {[%clk 0:00:59]}  Bg4 {[%clk 0:01:15]} 29. Rb7 {[%clk 0:00:55]}  Bh6+ {[%clk 0:01:09]} 30. Kb2 {[%clk 0:00:54]}  Bf4 {[%clk 0:01:09]} 31. Bf7+ {[%clk 0:00:51]}  Kh8 {[%clk 0:01:07]} 32. h4 {[%clk 0:00:42]}  Be5+ {[%clk 0:00:56]} 33. Kc1 {[%clk 0:00:38]}  Rd8 {[%clk 0:00:53]} 34. Bd5 {[%clk 0:00:38]}  Bd4 {[%clk 0:00:42]} 35. Rb8 {[%clk 0:00:33]}  Rxb8 {[%clk 0:00:40]} 36. Bxb8 {[%clk 0:00:34]}  Bf2 {[%clk 0:00:37]} 37. a4 {[%clk 0:00:32]}  Bxh4 {[%clk 0:00:36]} 38. a5 {[%clk 0:00:32]}  Bc8 {[%clk 0:00:36]} 39. Bd6 {[%clk 0:00:27]}  Bf2 {[%clk 0:00:35]} 40. Bc6 {[%clk 0:00:26]}  f5 {[%clk 0:00:29]} 41. Bb5 {[%clk 0:00:26]}  Be3+ {[%clk 0:00:26]} 42. Kd1 {[%clk 0:00:24]}  f4 {[%clk 0:00:24]} 43. Ke2 {[%clk 0:00:23]}  Bg4+ {[%clk 0:00:23]} 44. Kd3 {[%clk 0:00:21]}  Bf5+ {[%clk 0:00:22]} 45. Ke2 {[%clk 0:00:19]}  Bg4+ {[%clk 0:00:22]} 46. Ke1 {[%clk 0:00:18]}  Bf3 {[%clk 0:00:22]} 47. a6 {[%clk 0:00:17]}  Ba8 {[%clk 0:00:20]} 48. Bd7 {[%clk 0:00:17]}  f3 {[%clk 0:00:18]} 49. Bg3 {[%clk 0:00:16]}  Kg7 {[%clk 0:00:17]} 50. Bc8 {[%clk 0:00:16]} 1-0


[Site "https://www.chess.com"]